bitfinex/quotes_ETHUSD_20250115
["timestamp","ask_amount","ask_price","bid_price","bid_amount"]
[1736954702037,2.98963,3344.9,3344.0,2.99035]
[1736954702334,2.98963,3344.9,3343.9,0.3398]
[1736954702335,3.0,3344.8,3343.9,0.3398]
[1736954702539,2.98953,3345.1,3344.0,8.87]
[1736954702831,0.60207197,3345.2,3344.3,3.32991]
[1736954703033,3.60207197,3345.2,3344.3,3.32991]
[1736954703333,2.98864,3346.1,3344.3,3.32991]
[1736954703334,2.98912,3345.5,3344.5,2.98992]
[1736954703533,2.9892,3345.4,3344.4,8.87]
[1736954703842,2.9892,3345.4,3344.6,3.32962]
[1736954703843,0.60374872,3345.4,3344.6,3.32962]
[1736954703997,0.60374872,3345.4,3344.6,0.3398]
[1736954704197,3.60374872,3345.4,3344.6,0.3398]
[1736954704407,0.60374872,3345.4,3344.7,2.9898]
[1736954704623,0.60374872,3345.4,3344.8,0.231]
[1736954705038,3.59293872,3345.4,3344.8,0.231]
[1736954705246,0.60374872,3345.4,3344.8,0.231]
[1736954705397,0.55,3345.3,3344.6,0.3398]
[1736954705732,2.98971,3344.9,3344.1,9.4408]
[1736954705943,0.96303359,3345.4,3344.1,9.2098]
[1736954706243,0.55,3344.7,3344.1,0.3398]
[1736954706446,0.55,3344.0,3343.7,0.3398]
[1736954706647,2.99042,3344.1,3343.5,0.231]
[1736954706805,3.0,3344.2,3343.5,0.231]
[1736954707002,5.9901,3344.4,3343.5,0.231]
[1736954707236,0.7587,3345.1,3343.8,0.3398]
[1736954707423,2.98993,3344.6,3343.9,8.87]
[1736954707621,1.16941649,3345.1,3343.9,8.87]
[1736954707622,3.0,3344.5,3343.9,8.87]
[1736954707834,0.55,3344.5,3343.9,8.87]
[1736954708035,2.99023,3344.3,3343.9,8.87]
[1736954708552,0.61249176,3344.9,3343.8,0.3398]
[1736954708716,2.99034,3344.1,3343.8,0.3398]
[1736954709119,2.99059,3343.9,3343.6,0.231]
[1736954709324,0.55,3344.4,3343.6,0.231]
[1736954709325,4.3087,3344.4,3343.6,0.231]
[1736954709539,2.99089,3343.5,3343.3,8.87]
[1736954709851,2.99115,3343.2,3342.9,0.3398]
[1736954710256,2.99115,3343.2,3341.6,1.9189869]
[1736954710257,2.9915,3342.8,3342.4,8.87]
[1736954710563,2.99141,3342.9,3342.4,8.87]
[1736954710712,3.54125,3343.1,3342.4,8.87]
[1736954711027,2.99141,3343.0,3342.4,8.87]
[1736954711208,0.55,3343.0,3342.4,8.87]
[1736954711405,3.54158,3342.8,3342.3,0.231]
[1736954711610,0.55,3342.8,3341.9,0.231]
[1736954711803,0.55,3342.3,3341.9,0.231]
[1736954712057,6.54196,3342.3,3341.9,0.231]
[1736954712547,6.54196,3342.3,3342.0,8.87]
[1736954712906,1.55813721,3342.9,3342.0,8.87]
[1736954712907,0.74453721,3342.9,3342.0,8.87]
[1736954713152,0.60110532,3342.5,3342.2,8.87]
[1736954713456,3.54195,3342.3,3342.2,8.87]
[1736954713948,3.54195,3342.3,3341.1,8.87]
[1736954713949,3.0,3341.8,3341.1,8.87]
[1736954714133,2.99235,3341.9,3341.2,9.101]
[1736954714134,0.55,3341.9,3341.2,9.101]
[1736954714509,2.9925,3341.7,3341.2,9.101]
[1736954714740,2.99268,3341.5,3341.2,9.101]
[1736954714951,0.55,3341.2,3340.4,8.87]
[1736954715167,0.55,3341.2,3340.1,0.3398]
[1736954715168,0.55,3340.7,3340.1,0.3398]
[1736954715451,3.0,3340.7,3340.2,8.87]
[1736954715656,0.55,3340.4,3340.3,8.87]
[1736954715854,2.99339,3340.7,3340.2,8.87]
[1736954716160,0.55,3340.6,3340.1,0.3398]
[1736954716460,3.80645,3341.3,3340.1,3.3337]
[1736954716646,2.99285,3341.3,3340.2,0.231]
[1736954716825,2.99285,3341.3,3340.2,3.22482]
[1736954717026,3.55,3340.9,3340.2,0.231]
[1736954717863,0.55,3340.4,3340.1,0.5708]
[1736954718028,0.55,3341.1,3340.1,0.5708]
[1736954718356,3.55,3340.6,3340.1,0.5708]
[1736954718652,0.299285,3341.3,3340.1,0.5708]
[1736954718858,2.9928,3341.4,3340.3,2.99371]
[1736954719216,3.80571,3342.2,3341.0,9.2098]
[1736954719455,0.679755,3342.2,3341.0,9.2098]
[1736954719641,4.62536926,3342.6,3341.0,9.2098]
[1736954719642,0.55,3341.9,3341.0,9.2098]
[1736954719951,2.99224,3342.0,3341.0,9.2098]
[1736954720152,0.60701736,3342.4,3341.0,12.20291]
[1736954720656,0.55,3341.9,3341.0,9.2098]
[1736954721161,0.55,3341.8,3341.0,9.2098]
[1736954721322,0.55,3342.0,3341.0,0.3398]
[1736954721657,2.99141,3342.9,3341.5,8.87]
[1736954721857,0.55,3342.4,3341.6,8.87]
[1736954722722,3.55,3342.5,3341.6,8.87]
[1736954722970,0.55,3342.3,3341.7,8.87]
[1736954723179,2.99157,3342.8,3341.8,11.86239]
[1736954723474,2.99157,3342.8,3341.3,2.99277]
[1736954723475,2.99161,3342.7,3342.0,8.87]
[1736954723827,0.3290305,3343.1,3342.0,8.87]
[1736954724016,0.8136,3343.5,3342.0,8.87]
[1736954724350,2.99123,3343.2,3342.1,8.87]
[1736954724518,2.99123,3343.2,3342.2,0.231]
[1736954724915,0.55,3343.3,3342.2,0.231]
[1736954725369,0.55,3343.0,3342.2,0.231]
[1736954725868,0.58778058,3343.4,3342.2,0.231]
[1736954726167,2.99133,3343.0,3342.2,0.231]
[1736954726369,2.99161,3342.7,3342.1,8.87]
[1736954726520,2.99181,3342.5,3342.3,0.231]
[1736954726716,6.54186,3342.4,3342.3,0.231]
[1736954726968,3.55,3342.3,3341.5,0.3398]
[1736954727132,2.99213,3342.1,3341.6,8.87]
[1736954727463,6.54248,3341.7,3341.6,8.87]
[1736954727619,2.99288,3341.3,3341.1,9.2098]
[1736954727820,2.9926,3341.6,3341.1,8.87]
[1736954728018,0.8136,3342.3,3341.1,8.87]
[1736954728220,0.38136,3342.2,3340.8,0.231]
[1736954728536,3.0,3341.9,3340.8,0.231]
[1736954728717,2.99234,3341.9,3340.8,0.231]
[1736954729069,0.55,3341.8,3340.8,3.22428]
[1736954729243,3.0,3341.7,3340.8,3.22428]
[1736954730525,3.0,3342.0,3340.9,2.99317]
[1736954730953,3.0,3342.0,3340.9,0.3398]
[1736954731528,0.55,3342.5,3341.1,8.87]
[1736954731765,2.99195,3342.3,3341.3,8.87]
[1736954731932,2.99156,3342.8,3341.3,8.87]
[1736954732133,3.0,3342.1,3341.3,8.87]
[1736954732366,0.55,3341.7,3341.4,9.101]
[1736954732574,0.55,3342.1,3341.4,0.231]
[1736954732781,6.54266,3341.5,3341.4,0.231]
[1736954733328,3.55,3341.4,3340.4,9.2098]
[1736954733533,0.55,3341.1,3340.5,0.231]
[1736954734034,3.0,3341.7,3340.5,0.231]
[1736954734234,3.0,3341.2,3340.5,0.231]
[1736954734435,0.55,3341.1,3340.5,0.231]
[1736954735073,0.55,3341.1,3340.6,8.87]
[1736954735074,2.99336,3340.8,3340.6,8.87]
[1736954735271,3.54349,3340.6,3340.4,8.87]
[1736954735427,3.54349,3340.6,3340.0,0.3398]
[1736954735428,3.7882,3341.5,3340.1,8.87]
[1736954735634,2.99251,3341.7,3340.5,3.33335]
[1736954735834,0.7955,3341.8,3340.5,3.33335]
[1736954736030,2.99274,3341.5,3340.5,35.3398]
[1736954736229,4.60767903,3341.8,3340.5,35.3398]
[1736954736230,0.55,3341.4,3340.5,0.3398]
[1736954736443,3.55,3341.2,3340.5,0.3398]
[1736954736673,0.55,3341.7,3340.6,0.231]
[1736954736831,2.99329,3340.9,3340.6,0.231]
[1736954737035,3.0,3341.3,3340.6,0.231]
[1736954737237,0.55,3341.1,3340.6,0.231]
[1736954737730,0.55,3340.9,3340.5,0.3398]
[1736954737934,3.55,3340.8,3340.5,8.87]
[1736954738130,0.55,3340.7,3340.4,0.231]
[1736954738336,0.55,3341.3,3340.3,0.231]
[1736954738638,1.3455,3341.1,3340.3,0.231]
[1736954738837,2.99359,3340.5,3340.0,0.231]
[1736954739039,3.55,3340.4,3340.0,0.231]
[1736954739441,0.55,3340.3,3340.0,0.231]
[1736954739653,0.55,3340.3,3339.7,0.3398]
[1736954739850,3.54379,3340.3,3339.8,0.231]
[1736954740055,0.354379,3340.3,3339.8,0.231]
[1736954740354,3.55,3340.2,3339.8,0.231]
[1736954740937,0.55,3340.1,3339.8,0.231]
[1736954741275,0.55,3340.1,3339.7,0.5708]
[1736954741638,0.7955,3341.1,3339.7,0.5708]
[1736954741839,2.9932,3340.9,3339.7,0.5708]
[1736954742041,2.99297,3341.2,3340.2,0.3398]
[1736954742282,2.99303,3341.1,3340.3,35.0]
[1736954742650,0.7955,3341.9,3340.4,8.87]
[1736954742855,4.26364603,3341.9,3340.8,2.99328]
[1736954743082,2.9924,3341.8,3341.1,8.87]
[1736954743291,2.99252,3341.7,3341.1,8.87]
[1736954743443,3.0,3341.8,3341.1,8.87]
[1736954743636,3.78745,3342.3,3341.1,8.87]
[1736954743637,3.0,3342.1,3341.1,8.87]
[1736954743869,2.99233,3341.9,3341.1,8.87]
[1736954744102,2.99233,3341.9,3341.1,11.86299]
[1736954744103,0.61244792,3341.9,3341.1,11.86299]
[1736954744291,2.99213,3342.1,3341.1,11.86299]
[1736954745012,2.99213,3342.1,3340.9,0.231]
[1736954745013,1.38846993,3342.7,3341.7,8.87]
[1736954745211,0.55,3342.6,3341.7,8.87]
[1736954745504,1.38846993,3342.7,3341.3,0.3398]
[1736954745505,2.99228,3342.0,3341.8,8.87]
[1736954745800,0.55,3341.9,3341.8,8.87]
[1736954745999,2.99189,3342.4,3341.8,8.87]
[1736954746204,0.55,3342.0,3341.8,8.87]
[1736954746511,2.99169,3342.6,3342.0,0.3398]
[1736954746681,3.0,3342.5,3342.0,0.5708]
[1736954746876,2.9918,3342.5,3342.0,0.5708]
[1736954747220,0.55,3342.4,3342.0,0.231]
[1736954747420,3.54213,3342.1,3342.0,0.231]
[1736954747586,0.55,3342.1,3342.0,0.231]
[1736954747902,3.54213,3342.1,3342.0,0.231]
[1736954748267,0.55,3342.1,3342.0,0.231]
[1736954750015,0.55,3342.1,3342.0,9.101]
[1736954750863,1.20419,3342.1,3342.0,8.87]
[1736954751068,0.55,3342.0,3341.2,0.5708]
[1736954751276,0.55,3342.2,3341.2,0.5708]
[1736954751478,0.55,3341.4,3341.2,9.101]
[1736954751669,3.54277,3341.4,3341.2,9.101]
[1736954752004,0.55,3341.7,3341.2,9.101]
[1736954752163,4.196867,3341.6,3341.2,9.101]
[1736954752605,0.55,3341.4,3341.2,9.101]
[1736954752810,0.55,3341.5,3341.2,9.101]
[1736954753017,0.55,3341.5,3340.8,8.87]
[1736954753018,1.3293,3341.5,3340.8,8.87]
[1736954753220,3.55,3341.2,3340.8,8.87]
[1736954753504,0.55,3341.4,3340.8,8.87]
[1736954753505,0.55,3341.0,3340.8,8.87]
[1736954754207,0.55,3341.0,3340.4,8.87]
[1736954754208,0.354302,3341.0,3340.4,8.87]
[1736954754367,3.55,3340.8,3340.4,8.87]
[1736954755388,2.99287,3341.3,3340.4,8.87]
[1736954755581,2.99265,3341.6,3340.5,11.86355]
[1736954755787,3.54276,3341.4,3340.5,8.87]
[1736954755966,0.55,3341.2,3340.5,8.87]
[1736954756367,0.7793,3341.8,3340.8,0.3398]
[1736954756636,0.14998225,3342.4,3340.8,0.3398]
[1736954756637,2.99207,3342.2,3341.3,8.87]
[1736954756811,0.55,3342.1,3341.4,0.5708]
[1736954757015,0.55,3341.8,3341.4,0.5708]
[1736954758113,0.55,3342.1,3341.4,0.231]
[1736954758289,3.55,3341.8,3341.4,0.231]
[1736954758838,3.54259,3341.6,3341.3,8.87]
[1736954759188,0.55,3341.6,3340.8,8.87]
[1736954759525,0.7793,3341.7,3340.8,8.87]
[1736954759526,3.54286,3341.3,3340.8,8.87]
[1736954759739,0.55,3341.1,3340.8,8.87]
[1736954759885,0.55,3341.6,3340.6,8.87]
[1736954760086,6.54329,3340.8,3340.4,8.87]
[1736954760288,3.55,3340.7,3340.4,8.87]
[1736954760527,0.55,3340.7,3340.4,8.87]
[1736954760740,0.7793,3340.9,3340.4,8.87]
[1736954760887,0.7793,3340.9,3339.9,9.2098]
[1736954761090,0.7793,3340.9,3339.4,0.58921146]
[1736954761091,3.0,3340.5,3339.6,8.87]
[1736954761290,4.41861126,3341.0,3339.7,8.87]
[1736954761291,3.0,3340.2,3339.7,8.87]
[1736954761499,3.0,3339.9,3339.7,8.87]
[1736954761838,2.99409,3340.0,3339.2,8.87]
[1736954761839,2.99432,3339.7,3339.2,8.87]
[1736954762041,3.0,3340.0,3339.2,8.87]
[1736954762240,3.0,3339.4,3339.2,8.87]
[1736954762524,0.60955256,3339.9,3339.2,8.87]
[1736954762728,0.55,3339.5,3339.2,8.87]
[1736954763236,3.55,3339.4,3339.2,8.87]
[1736954763591,3.55,3339.6,3339.2,8.87]
[1736954763931,3.54439,3339.6,3339.2,8.87]
[1736954764147,2.99419,3339.8,3339.2,8.87]
[1736954764326,2.99428,3339.7,3339.2,8.87]
[1736954764814,0.55,3340.0,3339.2,8.87]
[1736954765039,0.55,3339.5,3339.2,8.87]
[1736954765202,0.55,3339.9,3339.2,8.87]
[1736954765403,0.55,3339.7,3339.2,8.87]
[1736954765638,0.79097314,3340.0,3339.2,8.87]
[1736954765803,0.7793,3340.3,3339.2,8.87]
[1736954766002,0.751,3340.6,3339.2,8.87]
[1736954766223,0.58756025,3340.4,3339.3,0.3398]
[1736954766420,3.0,3340.1,3339.4,35.0]
[1736954766827,3.58123025,3340.4,3339.4,11.86454]
[1736954767032,2.99344,3340.7,3339.6,8.87]
[1736954767344,2.99344,3340.7,3339.3,0.37667802]
[1736954767345,2.99338,3340.7,3340.0,0.3398]
[1736954767551,0.60080357,3340.9,3340.0,9.4408]
[1736954767751,2.99346,3340.7,3340.0,9.4408]
[1736954767898,0.55,3340.3,3340.0,9.2098]
[1736954768097,3.55,3340.3,3340.0,8.87]
[1736954768300,0.35942636,3340.7,3339.9,0.231]
[1736954768301,3.55,3340.1,3339.9,0.231]
[1736954769147,3.55,3340.2,3339.9,0.231]
[1736954769308,0.55,3340.1,3339.9,0.231]
[1736954769647,0.55,3339.9,3339.4,0.3398]
[1736954769796,2.99386,3340.2,3339.4,0.3398]
[1736954769797,3.0,3340.5,3339.4,0.3398]
[1736954770147,0.55,3340.2,3339.4,0.5708]
[1736954770452,3.54385,3340.2,3339.4,0.5708]
[1736954770750,3.0,3340.3,3339.4,0.5708]
[1736954770952,0.55,3340.2,3339.4,0.5708]
[1736954771149,0.55,3340.2,3339.4,3.56532]
[1736954771447,3.55,3340.5,3339.4,3.56532]
[1736954771852,4.13591482,3340.5,3339.4,3.56532]
[1736954772194,4.13591482,3340.5,3339.5,8.87]
[1736954772398,0.59230482,3340.5,3339.6,0.3398]
[1736954772654,0.59230482,3340.5,3339.7,0.231]
[1736954772952,0.55,3340.2,3339.8,0.231]
[1736954773244,0.55,3340.0,3339.8,0.231]
[1736954773443,0.55,3339.7,3339.5,8.87]
[1736954773743,0.55,3339.6,3339.5,8.87]
[1736954773912,3.54438,3339.6,3339.0,8.87]
[1736954774112,0.55,3339.9,3339.1,0.231]
[1736954774414,0.55,3339.7,3339.1,0.231]
[1736954774735,3.55,3339.7,3339.1,0.231]
[1736954774939,0.55,3339.8,3339.1,9.101]
[1736954775442,0.55,3339.8,3339.1,8.87]
[1736954775640,0.55,3339.8,3339.2,0.231]
[1736954776003,2.9943,3339.7,3339.2,0.231]
[1736954776443,2.99365,3340.4,3339.2,0.231]
[1736954776444,0.55,3339.5,3339.2,0.231]
[1736954776745,3.55,3339.5,3339.2,0.231]
[1736954776902,0.55,3339.5,3339.2,0.231]
[1736954777246,2.99419,3339.8,3339.3,8.87]
[1736954777457,0.55,3339.7,3339.4,8.87]
[1736954777960,0.55,3340.4,3339.4,8.87]
[1736954778254,3.55,3340.0,3339.4,8.87]
[1736954779009,0.55,3340.0,3339.4,8.87]
[1736954779259,0.60719798,3340.1,3339.5,0.3398]
[1736954779548,0.751,3340.9,3339.5,3.33425]
[1736954779903,0.751,3340.9,3339.6,35.0]
[1736954780149,2.9934,3340.7,3339.5,3.33425]
[1736954780450,2.9934,3340.7,3339.7,2.99427]
[1736954780652,2.9934,3340.7,3339.5,0.3398]
[1736954780653,0.55,3340.6,3339.5,3.33421]
[1736954781205,0.55,3340.6,3339.5,0.3398]
[1736954781452,0.55,3340.6,3339.6,2.99434]
[1736954781676,0.55,3340.6,3339.7,2.99427]
[1736954781965,3.55,3340.8,3339.9,3.3339]
[1736954782314,0.55,3340.9,3339.9,0.3398]
[1736954782519,0.55,3340.6,3339.9,0.3398]
[1736954782934,3.54324,3340.9,3340.0,8.87]
[1736954783130,0.55,3340.7,3340.0,8.87]
[1736954784072,0.5950864,3341.0,3340.2,8.87]
[1736954784272,6.50818255,3342.2,3340.4,8.87]
[1736954784417,2.99233,3341.9,3340.8,2.99326]
[1736954784621,0.60728308,3341.5,3340.9,8.87]
[1736954784815,0.751,3342.1,3341.0,8.87]
[1736954785047,0.61057994,3342.4,3341.1,0.3398]
[1736954785249,0.751,3342.5,3341.3,8.87]
[1736954785433,3.74243,3342.9,3341.7,2.99246]
[1736954785640,4.041576,3342.9,3341.9,8.87]
[1736954785857,4.041576,3342.9,3342.0,0.3398]
[1736954786142,1.050146,3342.9,3342.0,0.3398]
[1736954786344,0.751,3342.9,3342.0,0.3398]
[1736954786543,2.99162,3342.7,3342.0,0.3398]
[1736954786850,3.74244,3342.9,3342.0,0.3398]
[1736954787019,0.55,3342.8,3342.0,0.3398]
[1736954787219,0.55,3342.3,3341.9,8.87]
[1736954787447,0.55,3342.3,3340.7,3.0]
[1736954787448,3.55,3342.2,3342.0,0.23]
[1736954787764,3.55,3342.2,3341.8,0.23]
[1736954788369,3.0,3342.3,3341.8,0.23]
[1736954788553,0.55,3342.3,3341.8,0.23]
[1736954788749,2.99152,3342.8,3341.9,0.3398]
[1736954788922,0.55,3342.7,3341.9,0.3398]
[1736954789331,3.0,3342.7,3341.9,0.3398]
[1736954789550,0.55,3342.6,3341.9,0.3398]
[1736954790164,3.55,3342.6,3341.9,0.3398]
[1736954790359,0.55,3342.5,3341.9,0.3398]
[1736954790664,3.0,3342.6,3341.9,0.3398]
[1736954790847,2.99173,3342.6,3341.9,0.3398]
[1736954791055,0.55,3342.5,3341.9,0.3398]
[1736954791367,0.55,3342.6,3341.9,0.3398]
[1736954791858,3.74243,3342.9,3341.9,9.2098]
[1736954792067,3.55,3342.6,3341.9,9.2098]
[1736954792564,3.0,3342.8,3341.9,9.2098]
[1736954793273,0.55,3342.7,3341.9,9.2098]
[1736954794239,0.55,3342.7,3342.0,0.23]
[1736954794683,3.55,3342.6,3342.0,0.23]
[1736954794843,3.55,3342.6,3341.9,9.2098]
[1736954794844,3.55,3342.6,3342.1,0.23]
[1736954795044,4.27095,3342.6,3342.1,0.23]
[1736954795586,4.27095,3342.6,3342.0,0.23]
[1736954795781,0.55,3342.4,3342.0,0.23]
[1736954796087,0.55,3342.2,3341.6,0.3398]
[1736954796240,0.55,3342.4,3341.7,0.23]
[1736954796447,0.55,3342.2,3341.7,0.23]
[1736954796672,3.54179,3342.5,3341.7,0.23]
[1736954796876,0.55,3342.3,3341.7,0.23]
[1736954797691,0.55,3342.2,3341.7,0.23]
[1736954797853,0.8142,3342.3,3341.7,0.23]
[1736954798187,3.55,3342.0,3341.7,0.23]
[1736954798594,3.54229,3342.0,3341.7,0.23]
[1736954798882,0.55,3342.2,3341.7,0.23]
[1736954799097,3.5423,3342.0,3341.7,0.23]
[1736954799300,0.55,3342.0,3341.3,8.87]
[1736954799448,0.55,3341.6,3341.3,9.1]
[1736954799645,0.55,3341.6,3341.3,8.87]
[1736954800346,0.55,3341.8,3341.3,8.87]
[1736954800775,0.55,3341.8,3341.2,0.5698]
[1736954800976,1.2777941,3341.8,3341.2,0.5698]
[1736954801502,3.82902273,3343.1,3341.2,0.5698]
[1736954801642,0.8142,3343.0,3341.3,8.87]
[1736954801845,0.55,3342.3,3341.3,8.87]
[1736954802346,3.60748922,3342.6,3341.3,8.87]
[1736954802347,0.55,3342.5,3341.3,8.87]
[1736954802545,0.55,3342.3,3341.3,8.87]
[1736954802793,0.55,3342.3,3341.4,2.9927]
[1736954803143,3.5418,3342.5,3341.4,2.9927]
[1736954803348,3.95672892,3342.5,3341.4,2.9927]
[1736954803599,0.55,3342.3,3341.4,2.9927]
[1736954803793,0.55,3342.3,3341.3,8.87]
[1736954804294,3.55,3342.5,3341.4,2.99275]
[1736954804455,3.55,3342.5,3341.5,2.99265]
[1736954804654,3.55,3342.5,3341.6,0.3398]
[1736954805104,0.60748922,3342.6,3341.6,0.3398]
[1736954805265,0.8142,3343.4,3342.2,8.87]
[1736954805456,0.60849325,3343.8,3342.7,2.9915]
[1736954805806,3.80476,3343.9,3342.7,11.8615]
[1736954805973,0.8142,3343.9,3342.7,8.87]
[1736954806293,3.80474,3343.9,3342.8,11.8615]
[1736954806868,3.80474,3343.9,3342.8,8.87]
[1736954807554,2.9905,3344.0,3342.8,11.86147]
[1736954807981,3.54059,3343.9,3342.8,8.87]
[1736954808551,3.54059,3343.9,3342.8,11.8615]
[1736954809007,3.0,3344.0,3342.9,3.33121]
[1736954809154,0.55,3343.9,3342.9,3.33121]
[1736954809497,0.60807389,3344.2,3342.9,0.3398]
[1736954809706,0.55,3344.1,3342.9,0.3398]
[1736954809900,0.55,3343.9,3342.9,9.2098]
[1736954810070,0.55,3343.8,3342.9,9.2098]
[1736954810760,0.55,3343.6,3342.9,9.2098]
[1736954811395,0.55,3343.2,3342.9,0.3398]
[1736954811715,0.55,3343.4,3342.7,0.23]
[1736954812207,0.55,3343.5,3342.7,0.23]
[1736954812356,0.55,3343.2,3342.7,0.23]
[1736954813326,2.99114,3343.2,3342.7,0.23]
[1736954813492,0.55,3343.1,3342.4,0.5698]
[1736954813689,0.55,3343.2,3342.4,0.5698]
[1736954813988,2.99054,3343.9,3342.6,8.87]
[1736954814193,2.99054,3343.9,3342.9,0.3398]
[1736954814522,0.55,3343.8,3342.9,0.3398]
[1736954814888,1.1613686,3343.8,3342.9,0.3398]
[1736954815297,0.55,3343.6,3342.9,0.3398]
[1736954815707,3.55,3343.4,3342.6,9.2098]
[1736954816050,3.55,3343.4,3342.7,0.23]
[1736954816051,3.54099,3343.4,3342.7,0.23]
[1736954816605,3.5409,3343.5,3342.7,0.23]
[1736954816842,0.55,3343.3,3342.6,9.2098]
[1736954817048,0.55,3343.3,3342.8,0.23]
[1736954817211,0.55,3343.2,3342.8,0.23]
[1736954817921,0.55,3343.7,3342.8,0.23]
[1736954818328,0.79178786,3343.7,3342.8,0.23]
[1736954818959,0.55,3343.1,3342.8,0.23]
[1736954819354,0.55,3343.0,3342.8,0.23]
[1736954819557,0.55,3343.3,3342.8,0.23]
[1736954820760,0.55,3343.5,3342.8,0.23]
[1736954820976,3.54089,3343.5,3342.8,0.23]
[1736954822499,3.54089,3343.5,3342.9,0.3398]
[1736954822798,0.6113686,3343.8,3342.9,0.3398]
[1736954823386,0.7659,3343.7,3342.9,0.3398]
[1736954823595,0.55,3343.4,3342.9,0.3398]
[1736954823796,3.54097,3343.4,3342.9,0.3398]
[1736954823994,3.54082,3343.6,3342.9,0.3398]
[1736954824994,0.55,3343.7,3342.9,0.3398]
[1736954826693,3.54077,3343.7,3342.9,0.3398]
[1736954827102,0.55,3343.7,3342.9,0.3398]
[1736954827269,3.55,3343.4,3342.5,9.2098]
[1736954827593,0.55,3343.2,3342.6,0.23]
[1736954828094,5.99071,3343.7,3342.6,0.23]
[1736954828095,0.55,3343.5,3342.6,0.23]
[1736954828298,0.55,3343.3,3342.6,0.23]
[1736954828454,3.0,3343.7,3342.6,0.23]
[1736954828799,3.6019886,3343.8,3342.7,0.3398]
[1736954829093,3.0,3344.4,3342.8,11.8615]
[1736954829269,0.8205,3344.5,3342.9,0.3398]
[1736954829471,1.13326907,3344.5,3342.9,0.3398]
[1736954829682,0.31276907,3344.5,3343.6,8.87]
[1736954829854,0.31276907,3344.5,3342.7,5.25]
[1736954829855,3.58169317,3345.2,3344.0,2.99041]
[1736954830051,0.59229317,3345.2,3344.2,0.3398]
[1736954830290,2.98964,3344.9,3344.2,0.3398]
[1736954830456,0.59229317,3345.2,3344.2,0.3398]
[1736954830457,3.58168317,3345.2,3344.2,0.3398]
[1736954830916,2.98961,3345.0,3344.2,0.3398]
[1736954831109,0.59229317,3345.2,3344.2,0.3398]
[1736954831110,3.58167317,3345.2,3344.2,0.3398]
[1736954832875,0.408971,3344.8,3343.8,0.23]
[1736954833115,0.55,3344.5,3343.7,0.23]
[1736954833400,2.98973,3344.8,3343.8,0.3398]
[1736954833612,0.55,3344.7,3343.8,0.3398]
[1736954834657,0.55,3345.0,3343.8,0.3398]
[1736954835063,0.55,3344.8,3343.8,0.3398]
[1736954835389,3.53972,3344.8,3343.8,0.3398]
[1736954835587,3.53972,3344.8,3343.8,3.3304]
[1736954835588,0.55,3344.8,3343.8,3.3304]
[1736954835788,0.55,3344.8,3343.8,0.3398]
[1736954836181,1.3705,3345.1,3343.8,0.3398]
[1736954836377,0.55,3344.3,3343.8,0.3398]
[1736954836578,0.55,3344.5,3343.8,0.3398]
[1736954836809,0.49521932,3345.0,3343.8,0.3398]
[1736954837006,0.55,3344.8,3343.8,0.3398]
[1736954837222,2.98989,3344.6,3343.8,0.3398]
[1736954837375,0.55,3344.7,3343.8,0.3398]
[1736954837791,0.55,3344.5,3343.8,0.3398]
[1736954838028,2.98975,3344.8,3343.8,0.3398]
[1736954838288,0.55,3344.7,3343.8,0.3398]
[1736954838496,0.55,3344.6,3343.8,0.3398]
[1736954839261,0.55,3345.1,3343.8,0.3398]
[1736954839462,0.55,3344.6,3343.8,0.3398]
[1736954839760,0.55,3344.5,3343.9,8.87]
[1736954840005,0.55,3344.4,3343.9,8.87]
[1736954840177,0.55,3344.6,3343.9,8.87]
[1736954840511,2.98965,3344.9,3343.9,8.87]
[1736954840803,2.98973,3344.8,3343.9,8.87]
[1736954840959,0.55,3344.7,3343.9,8.87]
[1736954841600,0.55,3344.6,3343.9,8.87]
[1736954841815,0.55,3344.8,3343.9,8.87]
[1736954842115,0.59229317,3345.2,3344.2,8.87]
[1736954842317,0.55,3345.0,3344.2,8.87]
[1736954842518,3.53956,3345.0,3344.2,8.87]
[1736954844398,0.59229317,3345.2,3344.2,8.87]
[1736954844399,0.55,3345.1,3344.2,8.87]
[1736954844602,0.55,3344.7,3344.2,8.87]
[1736954844817,0.55,3344.8,3344.2,8.87]
[1736954845226,0.55,3344.8,3344.3,0.23]
[1736954845721,0.55,3344.8,3344.3,9.1]
[1736954846225,3.53948,3345.1,3344.3,9.1]
[1736954846735,0.55,3345.1,3344.3,9.1]